[Event "*** Titled Tuesday Blitz"]
[Site "Chess.com"]
[Date "2021.03.02"]
[Round "4"]
[White "AsaHoffmann"]
[Black "MerryPoppies"]
[Result "1-0"]
[WhiteElo "2298"]
[BlackElo "2136"]
[TimeControl "180+1"]
[EndTime "10:38:15 PST"]
[Termination "AsaHoffmann won by resignation"]

1. d4 {[%clk 0:02:57.7]} 1... d5 {[%clk 0:02:58.2]} 2. Bg5 {[%clk 0:02:56.4]}
2... h6 {[%clk 0:02:57.5]} 3. Bh4 {[%clk 0:02:52.5]} 3... c6 {[%clk 0:02:53]} 4.
e3 {[%clk 0:02:50]} 4... Qb6 {[%clk 0:02:52.7]} 5. b3 {[%clk 0:02:49.7]} 5...
Bf5 {[%clk 0:02:37]} 6. Bd3 {[%clk 0:02:48.8]} 6... Bxd3 {[%clk 0:02:34.1]} 7.
Qxd3 {[%clk 0:02:48.4]} 7... Nd7 {[%clk 0:02:34.5]} 8. Nf3 {[%clk 0:02:43.9]}
8... Ngf6 {[%clk 0:02:34.3]} 9. Nbd2 {[%clk 0:02:43]} 9... e6 {[%clk 0:02:29.2]}
10. O-O {[%clk 0:02:42.5]} 10... Be7 {[%clk 0:02:21.4]} 11. c4 {[%clk
0:02:39.7]} 11... dxc4 {[%clk 0:02:13.8]} 12. bxc4 {[%clk 0:02:32.9]} 12... O-O
{[%clk 0:02:12.1]} 13. Rab1 {[%clk 0:02:31.5]} 13... Qc7 {[%clk 0:02:10.9]} 14.
e4 {[%clk 0:02:25.4]} 14... e5 {[%clk 0:02:06.8]} 15. Bg3 {[%clk 0:02:20.8]}
15... Rad8 {[%clk 0:01:57.7]} 16. d5 {[%clk 0:02:11.1]} 16... Bd6 {[%clk
0:01:23]} 17. Nb3 {[%clk 0:02:06.8]} 17... Rfe8 {[%clk 0:00:57]} 18. h3 {[%clk
0:01:59.6]} 18... Nc5 {[%clk 0:00:57]} 19. Nxc5 {[%clk 0:01:56.2]} 19... Bxc5
{[%clk 0:00:57.9]} 20. Rfd1 {[%clk 0:01:55.4]} 20... cxd5 {[%clk 0:00:44.5]} 21.
cxd5 {[%clk 0:01:53.3]} 21... b6 {[%clk 0:00:44.8]} 22. Rdc1 {[%clk 0:01:42.4]}
22... Qd6 {[%clk 0:00:38.2]} 23. a4 {[%clk 0:01:39.9]} 23... Rb8 {[%clk
0:00:32]} 24. Rc4 {[%clk 0:01:38.9]} 24... Nd7 {[%clk 0:00:30.5]} 25. Nd2 {[%clk
0:01:29.9]} 25... Bd4 {[%clk 0:00:24.6]} 26. Rxd4 {[%clk 0:01:28.5]} 26... Nc5
{[%clk 0:00:18.4]} 27. Qc2 {[%clk 0:01:15.5]} 27... Rec8 {[%clk 0:00:17.9]} 28.
Rc4 {[%clk 0:01:15.2]} 28... f6 {[%clk 0:00:14.1]} 29. Qd1 {[%clk 0:01:06.3]}
1-0

[Event "*** Titled Tuesday Blitz"]
[Site "Chess.com"]
[Date "2021.03.02"]
[Round "4"]
[White "Tactictic"]
[Black "CraiggoryC"]
[Result "0-1"]
[WhiteElo "2420"]
[BlackElo "2267"]
[TimeControl "180+1"]
[EndTime "10:38:17 PST"]
[Termination "CraiggoryC won by checkmate"]

1. e4 {[%clk 0:02:00.1]} 1... e6 {[%clk 0:02:59.8]} 2. d4 {[%clk 0:01:59.9]}
2... d5 {[%clk 0:03:00.1]} 3. Nd2 {[%clk 0:02:00.5]} 3... Be7 {[%clk 0:03:00.1]}
4. Ngf3 {[%clk 0:02:00.3]} 4... Nf6 {[%clk 0:02:59.9]} 5. Bd3 {[%clk 0:01:59.5]}
5... c5 {[%clk 0:02:59.1]} 6. exd5 {[%clk 0:01:55.9]} 6... exd5 {[%clk
0:02:58.7]} 7. dxc5 {[%clk 0:01:52.8]} 7... a5 {[%clk 0:02:58.9]} 8. O-O {[%clk
0:01:47.8]} 8... O-O {[%clk 0:02:58.5]} 9. Nb3 {[%clk 0:01:43.6]} 9... Na6
{[%clk 0:02:57.2]} 10. h3 {[%clk 0:01:32.2]} 10... a4 {[%clk 0:02:54.4]} 11.
Nbd4 {[%clk 0:01:26.6]} 11... Nxc5 {[%clk 0:02:49.7]} 12. Bf5 {[%clk 0:01:23.1]}
12... Re8 {[%clk 0:02:42]} 13. Bf4 {[%clk 0:01:06.8]} 13... Nfe4 {[%clk
0:02:32.4]} 14. Bxc8 {[%clk 0:00:42.9]} 14... Rxc8 {[%clk 0:02:31.2]} 15. c3
{[%clk 0:00:42.3]} 15... a3 {[%clk 0:02:24.6]} 16. Qc2 {[%clk 0:00:21.2]} 16...
axb2 {[%clk 0:02:21.6]} 17. Qxb2 {[%clk 0:00:22.1]} 17... Nd3 {[%clk 0:02:14.5]}
18. Qxb7 {[%clk 0:00:14.9]} 18... Nxf4 {[%clk 0:02:04.7]} 19. Ne5 {[%clk
0:00:15.1]} 19... Rc7 {[%clk 0:01:54.4]} 20. Qb2 {[%clk 0:00:11.1]} 20... Bf6
{[%clk 0:01:48.5]} 21. Nec6 {[%clk 0:00:09.5]} 21... Qc8 {[%clk 0:01:20.8]} 22.
Rad1 {[%clk 0:00:04.4]} 22... Rxc6 {[%clk 0:01:16.2]} 23. Nxc6 {[%clk
0:00:04.6]} 23... Qxc6 {[%clk 0:01:15.5]} 24. Qb3 {[%clk 0:00:02.2]} 24... Nxc3
{[%clk 0:01:10]} 25. Rd2 {[%clk 0:00:02.5]} 25... d4 {[%clk 0:01:05.5]} 26. a4
{[%clk 0:00:01.5]} 26... Qxg2# {[%clk 0:01:05]} 0-1

[Event "*** Titled Tuesday Blitz"]
[Site "Chess.com"]
[Date "2021.03.02"]
[Round "4"]
[White "nurgyulsalimova"]
[Black "tomsishere"]
[Result "0-1"]
[WhiteElo "2643"]
[BlackElo "2502"]
[TimeControl "180+1"]
[EndTime "10:38:20 PST"]
[Termination "tomsishere won by resignation"]

1. Nf3 {[%clk 0:03:00.9]} 1... b6 {[%clk 0:02:57.8]} 2. g3 {[%clk 0:02:58.8]}
2... Bb7 {[%clk 0:02:58.7]} 3. Bg2 {[%clk 0:02:59.2]} 3... Nf6 {[%clk
0:02:57.3]} 4. d4 {[%clk 0:02:59.1]} 4... c5 {[%clk 0:02:56.5]} 5. O-O {[%clk
0:02:59]} 5... cxd4 {[%clk 0:02:53.9]} 6. Nxd4 {[%clk 0:02:58.6]} 6... Bxg2
{[%clk 0:02:53.2]} 7. Kxg2 {[%clk 0:02:59.5]} 7... Nc6 {[%clk 0:02:44.9]} 8. c4
{[%clk 0:02:58.1]} 8... Rc8 {[%clk 0:02:37.8]} 9. b3 {[%clk 0:02:56.5]} 9... e6
{[%clk 0:02:29.8]} 10. Bb2 {[%clk 0:02:55.1]} 10... Nxd4 {[%clk 0:02:25.6]} 11.
Qxd4 {[%clk 0:02:39.1]} 11... Bc5 {[%clk 0:02:25.1]} 12. Qh4 {[%clk 0:02:38.5]}
12... Be7 {[%clk 0:02:17.5]} 13. Nd2 {[%clk 0:02:33.9]} 13... Rc5 {[%clk
0:02:13.8]} 14. Rad1 {[%clk 0:02:26.2]} 14... Qa8+ {[%clk 0:02:09.8]} 15. Nf3
{[%clk 0:02:02.1]} 15... g5 {[%clk 0:02:03.8]} 16. Qh6 {[%clk 0:02:00.9]} 16...
Rf5 {[%clk 0:01:39.1]} 17. Kg1 {[%clk 0:01:48]} 17... Bf8 {[%clk 0:01:36.9]} 18.
Qxf6 {[%clk 0:01:38.9]} 18... Rxf6 {[%clk 0:01:36.6]} 19. Bxf6 {[%clk
0:01:39.8]} 19... Rg8 {[%clk 0:01:36.9]} 20. Bxg5 {[%clk 0:01:18.1]} 20... Be7
{[%clk 0:01:33.1]} 21. Bf4 {[%clk 0:01:14.2]} 21... Qe4 {[%clk 0:01:31.5]} 22.
Rd2 {[%clk 0:01:12.7]} 22... Qxf4 {[%clk 0:01:29.8]} 23. Rfd1 {[%clk 0:01:13.3]}
23... Qc7 {[%clk 0:01:27.9]} 24. Nd4 {[%clk 0:01:12.2]} 24... Bc5 {[%clk
0:01:15.2]} 25. e3 {[%clk 0:00:53.2]} 25... Bxd4 {[%clk 0:01:13.4]} 26. Rxd4
{[%clk 0:00:54.1]} 26... Rg5 {[%clk 0:01:10.9]} 27. Rh4 {[%clk 0:00:53.5]} 27...
h5 {[%clk 0:01:09.8]} 28. Rhd4 {[%clk 0:00:52.5]} 28... b5 {[%clk 0:01:06.2]}
29. cxb5 {[%clk 0:00:50.9]} 29... Rxb5 {[%clk 0:01:07.1]} 30. Rc4 {[%clk
0:00:51.1]} 30... Rc5 {[%clk 0:01:06.5]} 31. Rdc1 {[%clk 0:00:50.4]} 31... Rxc4
{[%clk 0:01:05.8]} 32. Rxc4 {[%clk 0:00:51.3]} 32... Qe5 {[%clk 0:01:05.7]} 33.
Ra4 {[%clk 0:00:50.1]} 33... a5 {[%clk 0:01:04.4]} 34. h4 {[%clk 0:00:49]} 34...
Qc3 {[%clk 0:00:58.8]} 35. Kg2 {[%clk 0:00:48.7]} 35... Qd2 {[%clk 0:00:55.7]}
36. Kg1 {[%clk 0:00:47.3]} 36... d5 {[%clk 0:00:53.8]} 37. Kg2 {[%clk 0:00:47]}
37... e5 {[%clk 0:00:50.8]} 0-1

[Event "*** Titled Tuesday Blitz"]
[Site "Chess.com"]
[Date "2021.03.02"]
[Round "4"]
[White "MarcoRiehle"]
[Black "SergeyShtyka"]
[Result "1-0"]
[WhiteElo "2680"]
[BlackElo "2455"]
[TimeControl "180+1"]
[EndTime "10:38:21 PST"]
[Termination "MarcoRiehle won by checkmate"]

1. e4 {[%clk 0:03:00.9]} 1... c5 {[%clk 0:02:59]} 2. a3 {[%clk 0:03:00.8]} 2...
b6 {[%clk 0:02:58.5]} 3. b4 {[%clk 0:02:59.6]} 3... Bb7 {[%clk 0:02:58.1]} 4.
Bb2 {[%clk 0:03:00.2]} 4... Bxe4 {[%clk 0:02:55.6]} 5. Nc3 {[%clk 0:02:54.6]}
5... Bb7 {[%clk 0:02:54.1]} 6. Nf3 {[%clk 0:02:53.1]} 6... Nf6 {[%clk
0:02:52.4]} 7. Bc4 {[%clk 0:02:51.2]} 7... e6 {[%clk 0:02:52.1]} 8. O-O {[%clk
0:02:49.6]} 8... cxb4 {[%clk 0:02:46.7]} 9. axb4 {[%clk 0:02:49.2]} 9... Bxb4
{[%clk 0:02:46.7]} 10. Nb5 {[%clk 0:02:41]} 10... d5 {[%clk 0:02:39.2]} 11. Bb3
{[%clk 0:02:38]} 11... a6 {[%clk 0:02:38.6]} 12. Nbd4 {[%clk 0:02:35.3]} 12...
O-O {[%clk 0:02:36.4]} 13. Ne5 {[%clk 0:02:34.9]} 13... Bc5 {[%clk 0:02:28.1]}
14. Qf3 {[%clk 0:02:28.1]} 14... Bxd4 {[%clk 0:02:26.2]} 15. Bxd4 {[%clk
0:02:27.4]} 15... Nc6 {[%clk 0:02:24.7]} 16. Nxc6 {[%clk 0:02:23.8]} 16... Bxc6
{[%clk 0:02:24.8]} 17. Qg3 {[%clk 0:02:16.9]} 17... a5 {[%clk 0:02:10.2]} 18. c3
{[%clk 0:02:15.7]} 18... Ne8 {[%clk 0:01:52.6]} 19. Rfe1 {[%clk 0:02:01.1]}
19... Bd7 {[%clk 0:01:41.4]} 20. Bc2 {[%clk 0:01:54.2]} 20... f6 {[%clk
0:01:35.1]} 21. Rab1 {[%clk 0:01:48.5]} 21... Rb8 {[%clk 0:01:27.4]} 22. Qh4
{[%clk 0:01:44.4]} 22... g6 {[%clk 0:01:25.5]} 23. f4 {[%clk 0:01:44.2]} 23...
Nd6 {[%clk 0:01:14.7]} 24. Re3 {[%clk 0:01:37.6]} 24... Nf5 {[%clk 0:01:01.3]}
25. Bxf5 {[%clk 0:01:37]} 25... exf5 {[%clk 0:01:01.6]} 26. Rbe1 {[%clk
0:01:37.4]} 26... Rf7 {[%clk 0:00:45.1]} 27. Qg3 {[%clk 0:01:25.3]} 27... a4
{[%clk 0:00:44.4]} 28. h4 {[%clk 0:01:24.5]} 28... a3 {[%clk 0:00:39.6]} 29. h5
{[%clk 0:01:24.1]} 29... g5 {[%clk 0:00:30.3]} 30. fxg5 {[%clk 0:01:21.2]} 30...
Rg7 {[%clk 0:00:10.3]} 31. Bxf6 {[%clk 0:01:20.5]} 31... Qxf6 {[%clk 0:00:09.5]}
32. Qxb8+ {[%clk 0:01:20]} 32... Qf8 {[%clk 0:00:09.8]} 33. Re8 {[%clk
0:01:20.2]} 33... Bxe8 {[%clk 0:00:09.5]} 34. Rxe8 {[%clk 0:01:21.1]} 34... a2
{[%clk 0:00:07.2]} 35. Rxf8# {[%clk 0:01:20.8]} 1-0

[Event "*** Titled Tuesday Blitz"]
[Site "Chess.com"]
[Date "2021.03.02"]
[Round "4"]
[White "XanoushX_X"]
[Black "Matols"]
[Result "1-0"]
[WhiteElo "2497"]
[BlackElo "2270"]
[TimeControl "180+1"]
[EndTime "10:38:23 PST"]
[Termination "XanoushX_X won by resignation"]

1. d4 {[%clk 0:03:00.9]} 1... Nf6 {[%clk 0:02:59.2]} 2. c4 {[%clk 0:03:01.4]}
2... e6 {[%clk 0:02:59.4]} 3. Nc3 {[%clk 0:03:01.9]} 3... Bb4 {[%clk 0:02:59.3]}
4. Qc2 {[%clk 0:03:02.3]} 4... d5 {[%clk 0:02:58.2]} 5. cxd5 {[%clk 0:03:01.8]}
5... exd5 {[%clk 0:02:56.5]} 6. Bg5 {[%clk 0:03:01.5]} 6... O-O {[%clk
0:02:54.9]} 7. e3 {[%clk 0:03:01.9]} 7... c6 {[%clk 0:02:50]} 8. Bd3 {[%clk
0:03:01.5]} 8... h6 {[%clk 0:02:41.3]} 9. Bh4 {[%clk 0:03:00.9]} 9... Re8 {[%clk
0:02:39.5]} 10. Ne2 {[%clk 0:03:00.4]} 10... Nbd7 {[%clk 0:02:36.1]} 11. O-O
{[%clk 0:02:59.4]} 11... Nf8 {[%clk 0:02:10.6]} 12. a3 {[%clk 0:02:52.2]} 12...
Be7 {[%clk 0:02:09.5]} 13. f3 {[%clk 0:02:50.2]} 13... Ne6 {[%clk 0:02:02.7]}
14. Rad1 {[%clk 0:02:43.7]} 14... Qc7 {[%clk 0:01:44]} 15. Bg3 {[%clk
0:02:13.5]} 15... Bd6 {[%clk 0:01:33.4]} 16. Bxd6 {[%clk 0:02:12.4]} 16... Qxd6
{[%clk 0:01:33.3]} 17. Ng3 {[%clk 0:01:58.7]} 17... c5 {[%clk 0:01:19.5]} 18.
Nf5 {[%clk 0:01:46.5]} 18... Qf8 {[%clk 0:01:17.5]} 19. Nb5 {[%clk 0:01:39.2]}
19... Bd7 {[%clk 0:01:08.4]} 20. Nbd6 {[%clk 0:01:29.9]} 20... cxd4 {[%clk
0:00:57.9]} 21. Nxe8 {[%clk 0:01:26.8]} 21... Rxe8 {[%clk 0:00:53.6]} 22. Nxd4
{[%clk 0:01:26.5]} 22... Nxd4 {[%clk 0:00:46.9]} 23. exd4 {[%clk 0:01:27.4]}
23... Qd6 {[%clk 0:00:46]} 24. Rfe1 {[%clk 0:01:26.7]} 24... Rc8 {[%clk
0:00:44.9]} 25. Qd2 {[%clk 0:01:25.5]} 25... Be6 {[%clk 0:00:40.7]} 26. Rc1
{[%clk 0:01:24.7]} 26... Rxc1 {[%clk 0:00:37]} 27. Rxc1 {[%clk 0:01:25.5]} 27...
Nh5 {[%clk 0:00:35.8]} 28. Qc3 {[%clk 0:01:19.5]} 28... Nf4 {[%clk 0:00:34]} 29.
Bf1 {[%clk 0:01:19.5]} 29... g5 {[%clk 0:00:20.1]} 30. Qc7 {[%clk 0:01:13.9]}
30... Qf8 {[%clk 0:00:19.6]} 31. Qxb7 {[%clk 0:01:10.8]} 1-0

[Event "*** Titled Tuesday Blitz"]
[Site "Chess.com"]
[Date "2021.03.02"]
[Round "4"]
[White "VFernandezB"]
[Black "ellennilssen"]
[Result "1-0"]
[WhiteElo "2491"]
[BlackElo "2269"]
[TimeControl "180+1"]
[EndTime "10:38:27 PST"]
[Termination "VFernandezB won by resignation"]

1. e4 {[%clk 0:02:54.5]} 1... e6 {[%clk 0:02:57.5]} 2. d4 {[%clk 0:02:54]} 2...
d5 {[%clk 0:02:50]} 3. Bd3 {[%clk 0:02:54.2]} 3... dxe4 {[%clk 0:02:49]} 4. Bxe4
{[%clk 0:02:54]} 4... Nf6 {[%clk 0:02:49.7]} 5. Bf3 {[%clk 0:02:54.3]} 5... c5
{[%clk 0:02:50.4]} 6. Ne2 {[%clk 0:02:54.4]} 6... Nc6 {[%clk 0:02:50.5]} 7. Be3
{[%clk 0:02:54.6]} 7... Nd5 {[%clk 0:02:11.1]} 8. Bxd5 {[%clk 0:02:40.3]} 8...
Qxd5 {[%clk 0:01:53.7]} 9. O-O {[%clk 0:02:39.1]} 9... cxd4 {[%clk 0:01:47.4]}
10. Nxd4 {[%clk 0:02:38.9]} 10... Be7 {[%clk 0:01:43.6]} 11. Nc3 {[%clk
0:02:38.3]} 11... Qd7 {[%clk 0:01:31.2]} 12. Qg4 {[%clk 0:02:14.5]} 12... O-O
{[%clk 0:01:29.4]} 13. Rad1 {[%clk 0:02:10.5]} 13... e5 {[%clk 0:01:26.1]} 14.
Qxd7 {[%clk 0:02:06.4]} 14... Bxd7 {[%clk 0:01:27]} 15. Ndb5 {[%clk 0:02:03.4]}
15... Bf5 {[%clk 0:01:19.6]} 16. Rd2 {[%clk 0:01:41.9]} 16... Rad8 {[%clk
0:01:19.1]} 17. Rfd1 {[%clk 0:01:41.9]} 17... Rxd2 {[%clk 0:01:16.3]} 18. Rxd2
{[%clk 0:01:41.9]} 18... Rd8 {[%clk 0:01:16.7]} 19. Nd5 {[%clk 0:01:34.1]} 19...
Kf8 {[%clk 0:00:49.8]} 20. c3 {[%clk 0:01:22.2]} 20... b6 {[%clk 0:00:42.5]} 21.
f3 {[%clk 0:01:17.1]} 21... Be6 {[%clk 0:00:34]} 22. Nbc7 {[%clk 0:01:13.4]}
22... Bc8 {[%clk 0:00:16.1]} 23. Kf2 {[%clk 0:01:09.9]} 23... Bc5 {[%clk
0:00:15.6]} 24. b4 {[%clk 0:01:06.7]} 24... Be7 {[%clk 0:00:15.3]} 25. a4 {[%clk
0:01:01.1]} 25... a5 {[%clk 0:00:15.2]} 26. b5 {[%clk 0:01:00.9]} 26... Nb8
{[%clk 0:00:13.1]} 27. Bxb6 {[%clk 0:00:57.5]} 27... Rxd5 {[%clk 0:00:11.8]} 28.
Nxd5 {[%clk 0:00:57]} 1-0

[Event "*** Titled Tuesday Blitz"]
[Site "Chess.com"]
[Date "2021.03.02"]
[Round "4"]
[White "francyIM"]
[Black "Orest_Vovk"]
[Result "1-0"]
[WhiteElo "2689"]
[BlackElo "2502"]
[TimeControl "180+1"]
[EndTime "10:38:28 PST"]
[Termination "francyIM won by resignation"]

1. e4 {[%clk 0:03:00.9]} 1... g5 {[%clk 0:02:57.3]} 2. d4 {[%clk 0:02:59.9]}
2... g4 {[%clk 0:02:57.3]} 3. Qxg4 {[%clk 0:02:57.9]} 3... d5 {[%clk 0:02:57.4]}
4. Qd1 {[%clk 0:02:55.2]} 4... dxe4 {[%clk 0:02:57.3]} 5. Nc3 {[%clk 0:02:55.6]}
5... Nf6 {[%clk 0:02:55.7]} 6. Bc4 {[%clk 0:02:54.3]} 6... Nc6 {[%clk
0:02:53.1]} 7. Nge2 {[%clk 0:02:54.1]} 7... Rg8 {[%clk 0:02:50.1]} 8. O-O {[%clk
0:02:51.1]} 8... Bh3 {[%clk 0:02:43.6]} 9. Ng3 {[%clk 0:02:47]} 9... Nxd4 {[%clk
0:02:26.1]} 10. Be3 {[%clk 0:02:38.4]} 10... e5 {[%clk 0:02:02.8]} 11. gxh3
{[%clk 0:02:23.8]} 11... Nf3+ {[%clk 0:02:01.9]} 12. Kh1 {[%clk 0:02:12.8]}
12... Qc8 {[%clk 0:01:54.4]} 13. Ncxe4 {[%clk 0:02:11.7]} 13... Nxe4 {[%clk
0:01:41.1]} 14. Qxf3 {[%clk 0:02:07.1]} 14... Nd6 {[%clk 0:01:39.6]} 15. Bb3
{[%clk 0:02:05.9]} 15... Qxh3 {[%clk 0:01:38.7]} 16. Ba4+ {[%clk 0:01:56.1]}
16... Ke7 {[%clk 0:01:19]} 17. Rad1 {[%clk 0:01:31.8]} 17... Qg4 {[%clk
0:00:37.9]} 18. Qxg4 {[%clk 0:01:27.6]} 18... Rxg4 {[%clk 0:00:38.8]} 19. Bb3
{[%clk 0:01:27]} 19... f5 {[%clk 0:00:33]} 20. f4 {[%clk 0:01:26]} 20... e4
{[%clk 0:00:24]} 21. Bc5 {[%clk 0:01:23.4]} 21... Kf6 {[%clk 0:00:19.4]} 22.
Bxd6 {[%clk 0:01:20.8]} 22... Bxd6 {[%clk 0:00:17.8]} 23. Rd5 {[%clk 0:01:21.5]}
23... Rxg3 {[%clk 0:00:12]} 24. hxg3 {[%clk 0:01:20.4]} 24... h5 {[%clk
0:00:11.4]} 25. Kg2 {[%clk 0:01:18.4]} 25... Kg6 {[%clk 0:00:09.1]} 26. Ba4
{[%clk 0:01:12.7]} 26... Rh8 {[%clk 0:00:08.1]} 27. Bd7 {[%clk 0:01:12]} 27...
Rf8 {[%clk 0:00:06.9]} 28. Rfd1 {[%clk 0:01:12.2]} 28... Rf7 {[%clk 0:00:06.5]}
29. Be8 {[%clk 0:01:11.4]} 1-0

[Event "*** Titled Tuesday Blitz"]
[Site "Chess.com"]
[Date "2021.03.02"]
[Round "4"]
[White "Durarbayli"]
[Black "googlegoom"]
[Result "1-0"]
[WhiteElo "2769"]
[BlackElo "2469"]
[TimeControl "180+1"]
[EndTime "10:38:30 PST"]
[Termination "Durarbayli won by resignation"]

1. e4 {[%clk 0:03:00.9]} 1... c5 {[%clk 0:02:59.1]} 2. Nf3 {[%clk 0:02:59.4]}
2... Nc6 {[%clk 0:02:59.4]} 3. Nc3 {[%clk 0:02:49.7]} 3... e6 {[%clk 0:02:58.8]}
4. d4 {[%clk 0:02:49.3]} 4... cxd4 {[%clk 0:02:57.2]} 5. Nxd4 {[%clk 0:02:50.2]}
5... Qb6 {[%clk 0:02:57.6]} 6. Nb3 {[%clk 0:02:46.3]} 6... Nf6 {[%clk 0:02:57]}
7. a3 {[%clk 0:02:42.7]} 7... a6 {[%clk 0:02:52.4]} 8. g4 {[%clk 0:02:35.3]}
8... h6 {[%clk 0:02:51.8]} 9. Bg2 {[%clk 0:02:33.2]} 9... d6 {[%clk 0:02:49.6]}
10. h4 {[%clk 0:02:31.4]} 10... Qc7 {[%clk 0:02:48.1]} 11. g5 {[%clk 0:02:31.4]}
11... hxg5 {[%clk 0:02:47.7]} 12. hxg5 {[%clk 0:02:32.3]} 12... Rxh1+ {[%clk
0:02:47.9]} 13. Bxh1 {[%clk 0:02:33.2]} 13... Nd7 {[%clk 0:02:48.2]} 14. f4
{[%clk 0:02:08.1]} 14... b5 {[%clk 0:02:38.9]} 15. f5 {[%clk 0:02:06.4]} 15...
Nde5 {[%clk 0:02:34.2]} 16. Bf4 {[%clk 0:01:40.7]} 16... Bd7 {[%clk 0:02:32.5]}
17. Qh5 {[%clk 0:01:37.2]} 17... O-O-O {[%clk 0:02:30.5]} 18. O-O-O {[%clk
0:01:36]} 18... Kb7 {[%clk 0:02:28]} 19. Bg2 {[%clk 0:01:12.2]} 19... Be8 {[%clk
0:02:18.5]} 20. Qe2 {[%clk 0:01:09.3]} 20... Nc4 {[%clk 0:02:06.3]} 21. g6
{[%clk 0:00:56]} 21... N6e5 {[%clk 0:01:57.4]} 22. Nd4 {[%clk 0:00:48.8]} 22...
Qe7 {[%clk 0:01:40.8]} 23. gxf7 {[%clk 0:00:37.9]} 23... Bxf7 {[%clk 0:01:38.7]}
24. fxe6 {[%clk 0:00:36.9]} 24... Bxe6 {[%clk 0:01:38.3]} 25. Nd5 {[%clk
0:00:27.1]} 25... Qf7 {[%clk 0:01:26.2]} 26. Nxe6 {[%clk 0:00:26.3]} 26... Qxe6
{[%clk 0:01:25.5]} 27. Qf2 {[%clk 0:00:25.7]} 27... Rc8 {[%clk 0:01:21.9]} 28.
b3 {[%clk 0:00:19.5]} 28... Nxa3 {[%clk 0:01:04]} 29. Qb6+ {[%clk 0:00:18.5]}
29... Ka8 {[%clk 0:01:03.5]} 30. Qxa6+ {[%clk 0:00:18.9]} 30... Kb8 {[%clk
0:01:04.2]} 31. Qb6+ {[%clk 0:00:19.5]} 31... Ka8 {[%clk 0:01:03.8]} 32. Qa6+
{[%clk 0:00:20.4]} 32... Kb8 {[%clk 0:01:04.1]} 33. Qxa3 {[%clk 0:00:21.3]} 1-0

[Event "*** Titled Tuesday Blitz"]
[Site "Chess.com"]
[Date "2021.03.02"]
[Round "4"]
[White "Joseacorrea"]
[Black "szachuspl"]
[Result "0-1"]
[WhiteElo "2089"]
[BlackElo "2482"]
[TimeControl "180+1"]
[EndTime "10:38:30 PST"]
[Termination "szachuspl won by resignation"]

1. c4 {[%clk 0:03:00.9]} 1... Nf6 {[%clk 0:02:58.4]} 2. Nc3 {[%clk 0:03:01.5]}
2... g6 {[%clk 0:02:58.3]} 3. e4 {[%clk 0:03:01.2]} 3... d6 {[%clk 0:02:58.4]}
4. d4 {[%clk 0:03:01.7]} 4... Bg7 {[%clk 0:02:59]} 5. f3 {[%clk 0:03:02.2]} 5...
O-O {[%clk 0:02:59.5]} 6. Be3 {[%clk 0:03:02.7]} 6... e5 {[%clk 0:03:00]} 7.
Nge2 {[%clk 0:03:01.3]} 7... Nc6 {[%clk 0:02:59.7]} 8. Qd2 {[%clk 0:03:01.6]}
8... a6 {[%clk 0:02:59.6]} 9. O-O-O {[%clk 0:02:59.3]} 9... Rb8 {[%clk
0:02:58.2]} 10. Bh6 {[%clk 0:02:51.6]} 10... b5 {[%clk 0:02:55.5]} 11. d5 {[%clk
0:02:46.2]} 11... Na5 {[%clk 0:02:49.1]} 12. Ng3 {[%clk 0:02:37.9]} 12... bxc4
{[%clk 0:02:41.3]} 13. h4 {[%clk 0:02:35.5]} 13... c5 {[%clk 0:02:23.6]} 14. h5
{[%clk 0:02:18.8]} 14... Qb6 {[%clk 0:01:48.9]} 15. Bxg7 {[%clk 0:02:18.5]}
15... Kxg7 {[%clk 0:01:48.8]} 16. hxg6 {[%clk 0:02:17.4]} 16... fxg6 {[%clk
0:01:49.2]} 17. Qh6+ {[%clk 0:02:13]} 17... Kg8 {[%clk 0:01:47.7]} 18. Rd2
{[%clk 0:02:12.7]} 18... Rf7 {[%clk 0:01:46.5]} 19. Nge2 {[%clk 0:01:27.8]}
19... Rfb7 {[%clk 0:01:33.1]} 20. g4 {[%clk 0:01:24.8]} 20... Qc7 {[%clk
0:01:30.7]} 21. Ng3 {[%clk 0:01:19.6]} 21... Qg7 {[%clk 0:01:30.6]} 22. Qh2
{[%clk 0:01:13.3]} 22... Bd7 {[%clk 0:01:28.2]} 23. Rg2 {[%clk 0:01:06.9]} 23...
Be8 {[%clk 0:01:20.8]} 24. Nf5 {[%clk 0:01:02.8]} 24... Qf8 {[%clk 0:01:18.2]}
25. Nh6+ {[%clk 0:00:47.3]} 25... Kh8 {[%clk 0:01:16.6]} 26. Be2 {[%clk
0:00:40.1]} 26... Rxb2 {[%clk 0:01:11.4]} 27. Nf5 {[%clk 0:00:33.2]} 27... R2b7
{[%clk 0:01:02.2]} 28. g5 {[%clk 0:00:20.1]} 28... Nh5 {[%clk 0:01:00.8]} 29. f4
{[%clk 0:00:19.7]} 29... Nxf4 {[%clk 0:00:52.8]} 30. Qxh7+ {[%clk 0:00:17.9]}
30... Rxh7 {[%clk 0:00:52.4]} 0-1

[Event "*** Titled Tuesday Blitz"]
[Site "Chess.com"]
[Date "2021.03.02"]
[Round "4"]
[White "PaulfromSPb"]
[Black "rpragchess"]
[Result "1-0"]
[WhiteElo "2708"]
[BlackElo "2859"]
[TimeControl "180+1"]
[EndTime "10:38:33 PST"]
[Termination "PaulfromSPb won by resignation"]

1. d4 {[%clk 0:03:00.9]} 1... g6 {[%clk 0:02:58.6]} 2. e4 {[%clk 0:03:00.3]}
2... Bg7 {[%clk 0:02:58.5]} 3. Nc3 {[%clk 0:02:59.8]} 3... d6 {[%clk 0:02:56.7]}
4. f4 {[%clk 0:02:54.9]} 4... Nf6 {[%clk 0:02:54.8]} 5. Nf3 {[%clk 0:02:54.5]}
5... O-O {[%clk 0:02:54.6]} 6. Bd3 {[%clk 0:02:52.8]} 6... Nc6 {[%clk
0:02:54.8]} 7. e5 {[%clk 0:02:28.7]} 7... dxe5 {[%clk 0:02:53.2]} 8. fxe5 {[%clk
0:02:23.8]} 8... Nh5 {[%clk 0:02:40.3]} 9. Bc4 {[%clk 0:02:17.6]} 9... Bg4
{[%clk 0:02:34.4]} 10. Be3 {[%clk 0:02:07.5]} 10... Na5 {[%clk 0:02:07.4]} 11.
Be2 {[%clk 0:02:06]} 11... c5 {[%clk 0:02:06.8]} 12. dxc5 {[%clk 0:02:00.5]}
12... Nc6 {[%clk 0:02:05.5]} 13. O-O {[%clk 0:01:55.4]} 13... Qa5 {[%clk
0:01:55.6]} 14. Qe1 {[%clk 0:01:47.7]} 14... Rad8 {[%clk 0:00:51.4]} 15. Qh4
{[%clk 0:01:39.5]} 15... Qb4 {[%clk 0:00:35.3]} 16. Rab1 {[%clk 0:01:32.2]}
16... Bxf3 {[%clk 0:00:14.4]} 17. Qxb4 {[%clk 0:01:31.4]} 17... Nxb4 {[%clk
0:00:15.3]} 18. Bxf3 {[%clk 0:01:30.5]} 18... Nxc2 {[%clk 0:00:15.9]} 19. Bg5
{[%clk 0:01:27.4]} 19... f6 {[%clk 0:00:14]} 20. Bh4 {[%clk 0:01:23.7]} 20...
Rd7 {[%clk 0:00:12.1]} 21. Rbd1 {[%clk 0:01:18.9]} 21... Rfd8 {[%clk 0:00:10.3]}
22. Bd5+ {[%clk 0:01:13.7]} 22... Kh8 {[%clk 0:00:09.8]} 23. Bxb7 {[%clk
0:01:05.6]} 23... Ne3 {[%clk 0:00:04.2]} 24. Rxd7 {[%clk 0:01:01.3]} 24... Rxd7
{[%clk 0:00:05.1]} 25. c6 {[%clk 0:01:01.3]} 25... Rc7 {[%clk 0:00:05.5]} 26.
Re1 {[%clk 0:00:58]} 26... Bh6 {[%clk 0:00:05.8]} 27. Nb5 {[%clk 0:00:55.5]} 1-0